bitfinex/quotes_ETHUSD_20251130
["timestamp","ask_amount","ask_price","bid_price","bid_amount"]
[1764540798876,0.002,3032.0,3031.9,41.55135253]
[1764540799078,0.002,3032.0,3031.9,40.99542319]
[1764540799971,0.002,3032.0,3031.9,43.60815319]
[1764540800873,0.002,3032.0,3031.9,13.60815319]
[1764540801048,0.002,3032.0,3031.9,43.60815319]
[1764540803282,0.002,3032.4,3032.0,1.13109811]
[1764540803456,0.002,3032.4,3032.3,35.52497195]
[1764540803656,0.002,3032.4,3032.3,35.73297195]
[1764540803862,0.002,3032.4,3032.3,35.92497195]
[1764540804170,0.002,3032.4,3032.3,36.39707195]
[1764540804474,0.002,3032.4,3032.3,39.69489868]
[1764540805553,0.002,3032.4,3032.3,38.78707868]
[1764540806377,0.002,3032.4,3032.3,33.70990168]
[1764540806854,0.002,3032.4,3032.3,32.27746968]
[1764540807058,0.002,3032.4,3032.3,34.58126868]
[1764540807662,0.002,3032.4,3032.3,31.48066668]
[1764540808171,0.002,3032.4,3032.3,39.07714768]
[1764540808358,0.002,3032.7,3032.3,39.07714768]
[1764540808359,0.002,3032.7,3032.6,0.73414466]
[1764540808571,0.002,3032.7,3032.6,25.16668195]
[1764540808885,0.002,3032.7,3032.6,25.79564129]
[1764540809087,0.002,3032.7,3032.6,36.55607195]
[1764540809382,0.188,3034.0,3033.5,1.13109811]
[1764540809684,0.188,3034.0,3033.6,0.208]
[1764540809982,0.4756,3033.7,3033.6,0.593504]
[1764540810170,0.4756,3033.7,3033.6,0.801504]
[1764540810360,0.7998,3033.7,3033.6,4.0979175]
[1764540811478,0.7998,3033.7,3033.6,0.188]
[1764540811669,0.7998,3033.7,3033.6,3.6924135]
[1764540814071,0.8018,3033.7,3033.6,4.82351161]
[1764540815161,0.8018,3033.7,3033.6,4.61551161]
[1764540815370,0.8018,3033.7,3033.6,4.82351161]
[1764540815654,0.4776,3033.7,3033.6,5.15215227]
[1764540815859,0.8018,3033.7,3033.6,5.15215227]
[1764540816056,0.8018,3033.7,3033.6,4.82351161]
[1764540820686,0.4776,3033.7,3033.6,4.82351161]
[1764540820889,0.8018,3033.7,3033.6,4.82351161]
[1764540822758,0.4776,3033.7,3033.6,4.82351161]
[1764540823164,0.8018,3033.7,3033.6,4.82351161]
[1764540825265,0.4776,3033.7,3033.6,13.33509427]
[1764540825578,0.002,3033.7,3033.6,13.82799427]
[1764540826082,0.002,3033.7,3033.6,14.30009427]
[1764540826395,0.002,3033.7,3033.6,25.24255578]
[1764540826593,0.002,3033.7,3033.6,24.91391512]
[1764540827218,0.9881,3033.7,3033.6,0.91359411]
[1764540827508,0.9881,3033.7,3032.7,3.43283751]
[1764540827509,0.9881,3033.7,3033.4,0.208]
[1764540827802,0.0048,3033.5,3033.4,0.208]
[1764540828173,0.4903,3033.5,3032.9,3.43283751]
[1764540828372,0.309,3033.0,3032.9,5.70373451]
[1764540828595,0.309,3033.0,3032.9,6.51856351]
[1764540828794,0.7945,3033.0,3032.9,6.51856351]
[1764540828989,0.7945,3033.0,3032.9,9.81573783]
[1764540829380,0.7945,3033.0,3032.9,6.14845451]
[1764540829587,0.7945,3033.0,3032.9,3.64083751]
[1764540829786,0.7945,3033.0,3032.9,6.93801183]
[1764540830493,0.7945,3033.0,3032.9,0.208]
[1764540831207,0.7945,3033.0,3032.9,3.50517432]
[1764540833421,0.7945,3033.0,3032.9,3.50517432]
[1764540836408,0.7945,3033.0,3032.9,3.29717432]
[1764540836578,0.7945,3033.0,3032.9,0.208]
[1764540838511,0.309,3033.0,3032.9,0.208]
[1764540839013,0.7889,3033.0,3032.9,3.50517432]
[1764540839303,0.7889,3033.0,3032.9,0.21556258]
[1764540840507,0.7889,3033.0,3032.6,3.29839872]
[1764540840805,3.29674476,3033.3,3032.9,0.208]
[1764540840984,3.29674476,3033.3,3033.0,0.208]
[1764540841187,3.29666901,3033.4,3033.0,0.208]
[1764540841388,0.3227,3033.1,3033.0,0.208]
[1764540841780,0.801,3033.1,3033.0,0.208]
[1764540844623,0.801,3033.1,3032.7,0.405504]
[1764540844824,0.19,3032.8,3032.6,0.209]
[1764540845026,0.7979,3032.7,3032.6,0.209]
[1764540848196,0.7979,3032.7,3032.6,3.50650049]
[1764540848628,0.7979,3032.7,3032.6,0.001]
[1764540848832,0.7979,3032.7,3032.6,3.50650049]
[1764540849038,0.1852,3032.8,3032.6,3.50650049]
[1764540849203,0.3227,3032.7,3032.6,3.50650049]
[1764540850315,0.801,3032.7,3032.6,5.10650049]
[1764540854754,0.4799,3033.3,3032.8,9.19965511]
[1764540854959,0.4799,3033.1,3032.9,0.72559411]
[1764540855124,0.4799,3033.1,3033.0,0.208]
[1764540855525,0.8026,3033.1,3033.0,3.50506561]
[1764540855719,0.3227,3033.1,3033.0,4.23065972]
[1764540856050,0.801,3033.1,3033.0,4.23065972]
[1764540856254,0.801,3033.1,3033.0,7.66349723]
[1764540857150,0.3227,3033.1,3033.0,7.66349723]
[1764540857353,0.4799,3033.6,3033.1,0.72559411]
[1764540857654,0.3227,3033.2,3033.1,0.72559411]
[1764540858218,0.4799,3033.6,3033.1,1.18479411]
[1764540858450,0.3227,3033.2,3033.1,0.72559411]
[1764540858652,0.4799,3033.6,3033.2,3.43283751]
[1764540858843,0.3227,3033.3,3033.2,3.43283751]
[1764540859344,0.3227,3033.3,3033.2,6.72968572]
[1764540859855,0.4799,3033.6,3033.2,10.02653393]
[1764540860229,0.3227,3033.3,3033.2,6.72968572]
[1764540861456,0.002,3033.7,3033.3,12.94528211]
[1764540861750,0.4819,3033.7,3033.6,3.43283751]
[1764540862134,0.808,3033.7,3033.6,3.43283751]
[1764540864058,0.808,3033.7,3033.5,3.29652216]
[1764540864267,0.808,3033.7,3033.5,6.72935967]
[1764540864443,0.4819,3033.7,3033.5,6.72935967]
[1764540864759,0.3261,3033.6,3033.5,6.72935967]
[1764540866757,0.3261,3033.6,3033.5,3.29652216]
[1764540867064,0.802,3033.6,3033.5,3.29652216]
[1764540867227,0.3261,3033.6,3033.0,0.3261]
[1764540867428,0.4779,3033.7,3033.2,9.664939]
[1764540867638,0.4779,3033.7,3033.3,3.76147817]
[1764540867845,0.4779,3033.7,3033.3,3.43283751]
[1764540868039,0.4991,3033.7,3033.5,3.43283751]
[1764540868238,0.4991,3033.7,3033.3,3.43283751]
[1764540868239,0.309,3033.4,3033.3,3.43283751]
[1764540868539,0.309,3033.4,3033.3,3.64083751]
[1764540868741,0.309,3033.4,3033.3,7.30166078]
[1764540874361,0.309,3033.4,3033.3,3.86882327]
[1764540874564,0.309,3033.4,3033.3,7.30166078]
[1764540875971,0.309,3033.4,3033.3,3.86882327]
[1764540876266,0.309,3033.4,3033.3,7.30166078]
[1764540878575,0.309,3033.4,3033.3,3.86882327]
[1764540878779,0.309,3033.4,3033.3,6.93757703]
[1764540880434,0.4972,3033.6,3033.3,10.23431655]
[1764540882172,0.002,3033.6,3033.5,3.43283751]
[1764540882644,0.311,3033.6,3033.5,3.43283751]
[1764540883555,0.311,3033.6,3033.5,6.72935967]
[1764540886670,0.002,3033.6,3033.5,7.22215967]
[1764540887549,0.311,3033.6,3033.5,6.72935967]
[1764540887870,0.311,3033.6,3033.4,3.62523396]
[1764540888077,0.311,3033.6,3033.5,0.208]
[1764540888771,0.311,3033.6,3033.5,3.50452216]
[1764540889076,0.8062,3033.6,3033.5,3.50452216]
[1764540890779,0.311,3033.6,3033.5,3.50452216]
[1764540891680,0.8062,3033.6,3033.5,3.50452216]
[1764540891880,0.002,3033.6,3033.5,3.99732216]
[1764540892746,0.002,3033.6,3033.5,4.45762216]
[1764540893153,0.002,3033.6,3033.5,3.99732216]
[1764540896871,0.3514,3033.6,3033.5,0.208]
[1764540897189,0.8067,3033.6,3033.5,0.208]
[1764540897388,0.8067,3033.6,3033.3,0.03296739]
[1764540897389,0.3514,3033.6,3033.4,3.29663084]
[1764540897550,0.3514,3033.6,3033.5,0.208]
[1764540897746,0.002,3033.6,3033.5,0.208]
[1764540897951,0.4977,3033.6,3033.5,0.208]
[1764540898146,0.8082,3033.6,3033.5,0.208]
[1764540898386,0.8082,3033.6,3033.5,3.50452216]
[1764540899906,0.8082,3033.6,3033.5,0.208]
[1764540900053,0.8082,3033.6,3033.5,3.50452216]
[1764540900255,0.8082,3033.6,3033.0,0.72559411]
[1764540900451,0.8082,3033.6,3033.2,0.72559411]
[1764540900452,0.4564,3033.5,3033.2,0.72559411]
[1764540900656,0.3494,3033.3,3033.2,0.72559411]
[1764540901060,0.8047,3033.3,3033.2,0.72559411]
[1764540902490,0.8047,3033.3,3033.1,0.72559411]
[1764540902683,0.002,3033.6,3033.2,0.208]
[1764540902864,0.33182209,3033.6,3033.2,0.208]
[1764540903063,0.4957,3033.3,3033.2,0.208]
[1764540903570,0.8062,3033.3,3033.2,0.208]
[1764540903771,0.8062,3033.3,3032.7,3.29738062]
[1764540903964,0.4564,3033.2,3032.8,0.93359411]
[1764540904387,0.4564,3033.2,3032.8,0.72559411]
[1764540904388,0.5346,3032.9,3032.8,0.72559411]
[1764540904691,0.5346,3032.9,3032.8,0.208]
[1764540904997,0.9899,3032.9,3032.6,0.001]
[1764540905195,0.6426,3032.9,3032.6,0.001]
[1764540905359,0.4957,3032.7,3032.6,0.209]
[1764540905566,0.92455824,3032.7,3032.6,0.209]
[1764540905787,1.23295824,3032.7,3032.6,0.209]
[1764540905959,1.23295824,3032.7,3032.6,0.001]
[1764540906162,1.5616884,3032.7,3032.6,0.001]
[1764540906364,4.85908016,3032.7,3032.6,0.001]
[1764540908391,1.23295824,3032.7,3032.6,0.001]
[1764540908693,0.4957,3032.7,3032.6,0.001]
[1764540908861,0.4564,3033.2,3032.6,0.4734]
[1764540909261,0.6437,3033.3,3032.7,3.823187]
[1764540909465,0.6437,3033.3,3032.7,0.03297391]
[1764540909676,0.6437,3033.3,3032.7,0.49327391]
[1764540910271,3.29653206,3033.5,3032.7,0.49327391]
[1764540910492,0.4584,3033.6,3033.1,3.2969569]
[1764540910690,0.4584,3033.6,3033.2,0.208]
[1764540911196,0.3473,3033.3,3033.2,0.208]
[1764540911584,0.8026,3033.3,3033.2,0.208]
[1764540912300,0.8026,3033.3,3032.7,3.29732322]
[1764540912483,0.4564,3033.2,3032.8,0.208]
[1764540912805,0.4564,3033.2,3032.8,3.50526588]
[1764540912999,0.3473,3032.9,3032.8,3.29726588]
[1764540913177,0.4564,3033.2,3032.8,6.80254891]
[1764540913378,0.4564,3033.2,3032.8,7.27494891]
[1764540913885,0.4564,3033.2,3032.8,3.97766588]
[1764540914899,0.4564,3033.2,3032.8,4.01063871]
[1764540915083,0.4564,3033.2,3032.8,3.76966588]
[1764540915288,0.4564,3033.2,3032.9,0.208]
[1764540916206,0.3473,3033.0,3032.9,3.50515099]
[1764540917606,0.3473,3033.0,3032.7,3.29737674]
[1764540917813,0.8026,3033.0,3032.9,0.208]
[1764540918505,0.8026,3033.0,3032.6,0.001]
[1764540918805,0.6437,3032.9,3032.7,0.208]
[1764540919177,0.3473,3032.8,3032.7,0.208]
[1764540919988,0.8026,3032.8,3032.7,0.208]
[1764540920698,0.3473,3032.8,3032.7,0.208]
[1764540920889,0.8026,3032.8,3032.7,0.208]
[1764540928234,0.3473,3032.8,3032.7,0.208]
[1764540931596,0.8026,3032.8,3032.7,0.208]
[1764540932541,0.8026,3032.8,3032.6,0.001]
[1764540932708,3.29729731,3032.8,3032.7,0.208]
[1764540932908,3.7262072,3032.8,3032.7,0.208]
[1764540933233,1.23300989,3032.8,3032.7,0.208]
[1764540934229,4.53029292,3032.8,3032.7,0.208]
[1764540934429,1.23300989,3032.8,3032.7,0.208]
[1764540934828,4.53029292,3032.8,3032.7,0.208]
[1764540935202,1.23300989,3032.8,3032.7,0.208]
[1764540936830,1.23300989,3032.8,3032.6,0.001]
[1764540937005,0.73490989,3032.8,3032.7,0.208]
[1764540937404,1.23110989,3032.8,3032.6,0.001]
[1764540937615,0.8038,3032.7,3032.6,0.001]
[1764540937815,0.8038,3032.7,3032.6,0.209]
[1764540938134,0.3453,3032.7,3032.6,0.209]
[1764540940011,0.6466,3032.9,3032.6,0.6602]
[1764540940217,0.002,3032.9,3032.6,4.45118217]
[1764540940535,0.002,3032.9,3032.8,0.4512]
[1764540940910,0.002,3032.9,3032.8,0.9447]
[1764540942334,0.002,3032.9,3032.8,4.24198303]
[1764540942533,0.002,3032.9,3032.8,7.96866103]
[1764540942836,0.002,3032.9,3032.8,4.24198303]
[1764540943134,0.002,3032.9,3032.8,0.9447]
[1764540943342,0.002,3032.9,3032.8,0.4512]
[1764540943848,0.002,3032.9,3032.8,3.74848303]
[1764540944010,0.002,3032.9,3032.8,0.4512]
[1764540944408,0.002,3032.9,3032.8,3.74848303]
[1764540950629,0.002,3032.9,3032.8,4.24198303]
[1764540951620,0.002,3032.9,3032.8,3.74848303]
[1764540952433,0.002,3032.9,3032.8,4.24198303]
[1764540953444,0.002,3032.9,3032.8,4.27495586]
[1764540953641,0.002,3032.9,3032.8,11.53731854]
[1764540953936,0.002,3032.9,3032.8,16.50837971]
[1764540954838,0.002,3032.9,3032.8,23.96947071]
[1764540955439,0.002,3032.9,3032.8,24.69506482]
[1764540955955,0.002,3032.9,3032.8,33.63890682]
[1764540956133,0.002,3032.9,3032.8,30.88688682]
[1764540956335,0.002,3032.9,3032.8,31.01889675]
[1764540956739,0.002,3032.9,3032.8,29.72597275]
[1764540957064,0.002,3032.9,3032.8,36.22861675]
[1764540957849,0.002,3032.9,3032.8,37.01804875]
[1764540958965,0.002,3032.9,3032.8,37.57743475]
[1764540959466,0.002,3032.9,3032.8,41.67220216]
[1764540959878,0.002,3033.2,3033.1,0.405504]
[1764540960175,0.002,3033.2,3033.1,28.84329435]
[1764540960376,0.002,3033.2,3033.1,32.56868169]
[1764540960664,0.002,3033.2,3033.1,33.24178169]
[1764540960953,0.002,3033.2,3033.1,40.18669669]
[1764540961353,0.002,3033.2,3033.1,39.97869669]
[1764540961544,0.002,3033.2,3033.1,32.03928969]
[1764540961951,0.002,3033.2,3033.1,35.50298969]
[1764540962131,0.002,3033.2,3033.1,36.49545193]
[1764540962333,0.002,3033.2,3033.1,35.50298969]
[1764540963154,0.002,3033.2,3033.1,40.18669669]
[1764540965574,0.002,3033.2,3033.1,10.18669669]
[1764540965781,0.002,3033.2,3033.1,40.18669669]
[1764540966959,0.002,3033.2,3033.1,32.03471969]
[1764540967174,0.002,3033.2,3033.1,36.46628869]
[1764540967476,0.002,3033.2,3033.1,35.88619869]
[1764540968131,0.002,3033.2,3033.1,36.62629369]
[1764540968666,0.002,3033.2,3033.1,35.48818969]
[1764540968863,0.002,3033.2,3033.1,14.33182701]
[1764540969235,0.002,3033.2,3033.1,15.00144601]
[1764540969435,0.002,3033.2,3033.1,14.23702601]
[1764540969635,0.312,3033.2,3033.1,5.14975101]
[1764540969931,0.312,3033.2,3033.1,7.55244901]
[1764540970131,0.312,3033.2,3033.1,11.26391901]
[1764540970338,0.7983,3033.2,3033.1,7.97635501]
[1764540971367,0.7983,3033.2,3033.1,9.05590301]
[1764540972231,0.7983,3033.2,3033.1,9.07193901]
[1764540972448,0.7983,3033.2,3033.1,7.52228101]
[1764540973266,0.7983,3033.2,3033.1,7.52767601]
[1764540973765,0.312,3033.2,3033.1,7.52767601]
[1764540974136,0.7983,3033.2,3033.1,7.52767601]
[1764540974337,0.7983,3033.2,3033.1,7.56630601]
[1764540974538,0.7983,3033.2,3033.1,7.77430601]
[1764540974749,0.7983,3033.2,3033.1,8.00076901]
[1764540975350,0.7983,3033.2,3033.1,5.30915501]
[1764540975562,0.7983,3033.2,3033.1,9.94550801]
[1764540975985,0.7983,3033.2,3033.1,8.29676201]
[1764540976187,0.7983,3033.2,3033.1,8.08886201]
[1764540977184,0.312,3033.2,3033.1,8.77785401]
[1764540977391,0.7983,3033.2,3033.1,12.56219201]
[1764540977569,0.312,3033.2,3033.1,12.56219201]
[1764540978163,0.312,3033.2,3033.1,9.85950401]
[1764540978754,0.312,3033.2,3033.1,4.69565101]
[1764540978959,0.7983,3033.2,3033.1,8.90070301]
[1764540980771,0.312,3033.2,3033.1,21.20955401]
[1764540980964,0.002,3033.2,3033.1,10.77340501]
[1764540981293,0.002,3033.2,3033.1,4.68465101]
[1764540981457,0.002,3033.2,3033.1,17.43555957]
[1764540981662,0.002,3033.2,3033.1,13.74610801]
[1764540982892,0.002,3033.2,3033.1,4.68465101]
[1764540983092,0.002,3033.2,3033.1,15.34467557]
[1764540983294,0.002,3033.2,3033.1,15.31170601]
[1764540985203,0.002,3033.2,3033.1,15.34653701]
[1764540985702,0.002,3033.2,3033.1,17.24328167]
[1764540985904,0.002,3033.2,3033.1,16.91464101]
[1764540986109,0.002,3033.2,3033.1,27.48589435]
[1764540986979,0.002,3033.2,3033.1,6.25929035]
[1764540987182,0.002,3033.2,3033.1,27.96865991]
[1764540987379,0.002,3033.2,3033.1,27.93569035]
[1764540988203,0.002,3033.2,3033.1,28.21487935]
[1764540989299,0.002,3033.2,3033.1,36.25929035]
[1764540990919,0.002,3033.2,3033.1,9.31439869]
[1764540991102,0.002,3033.2,3033.1,19.99291637]
[1764540991301,0.002,3033.2,3033.1,19.85048237]
[1764540992091,0.002,3033.2,3033.1,9.67659137]
[1764540992292,0.002,3033.2,3033.1,20.62597337]
[1764540993220,0.002,3033.2,3033.1,22.04478737]
[1764540994320,0.002,3033.2,3033.1,22.43478737]
[1764540994798,0.002,3033.2,3033.1,22.04478737]
[1764540995000,0.002,3033.2,3033.1,21.80669737]
[1764540995207,0.002,3033.2,3033.1,17.61209237]
[1764540995413,0.002,3033.2,3033.1,16.95232037]
[1764540995607,0.002,3033.2,3033.1,16.74432037]
[1764540995917,0.002,3033.2,3033.1,16.95232037]
[1764540996308,0.002,3033.2,3033.1,9.67659137]
[1764540996617,0.002,3033.2,3033.1,23.66433537]
[1764540996813,0.002,3033.2,3033.1,16.97645737]
[1764540997421,0.002,3033.2,3033.1,9.67659137]
[1764540997611,0.002,3033.2,3033.1,21.56895837]
[1764540998219,0.002,3033.2,3033.1,20.89115837]
[1764540998439,0.002,3033.2,3033.1,39.20679137]
[1764540998738,0.72559411,3035.2,3033.1,39.20679137]
[1764540998739,0.62916007,3034.8,3034.3,0.405504]
[1764540998911,0.16576007,3034.8,3034.7,3.29521863]
[1764540999420,0.97386007,3034.8,3034.7,3.29521863]
[1764541000406,0.16576007,3034.8,3034.7,19.3134184]
[1764541000601,0.16576007,3034.8,3034.7,23.09465183]
[1764541000808,0.16576007,3034.8,3034.7,23.89309249]
[1764541001007,0.16576007,3034.8,3034.7,20.45679147]
[1764541001224,0.51106007,3034.8,3034.7,10.04639781]
[1764541001425,0.51106007,3034.8,3034.7,12.82811481]
[1764541001607,0.51106007,3034.8,3034.7,12.61397381]
[1764541001808,0.16576007,3034.8,3034.7,13.42201447]
[1764541002406,0.16576007,3034.8,3034.7,18.35384947]
[1764541003434,0.51216007,3034.8,3034.7,17.08229047]
[1764541004043,0.51216007,3034.8,3034.7,15.88472747]
[1764541004538,0.51216007,3034.8,3034.7,17.98327247]
[1764541004912,0.1831,3036.0,3034.7,17.98327247]
[1764541004913,0.1831,3036.0,3034.8,7.546496]
[1764541005125,0.4634,3035.3,3035.2,3.7001798]
[1764541005447,0.4634,3035.3,3035.2,4.42577391]
[1764541005625,0.4634,3035.3,3035.2,4.63377391]
[1764541005626,0.8087,3035.3,3035.2,4.63377391]
[1764541006140,0.8087,3035.3,3035.2,4.42577391]
[1764541006448,0.8087,3035.3,3035.1,0.208]
[1764541006655,0.8087,3035.2,3035.1,0.208]
[1764541007924,0.8087,3035.2,3034.7,3.29517948]
[1764541008112,0.4634,3035.1,3035.0,0.208]
[1764541008316,0.9268,3035.1,3035.0,0.208]
[1764541009012,0.9268,3035.1,3034.6,3.29528419]
[1764541009241,0.4634,3035.0,3034.9,0.208]
[1764541009750,0.9962,3035.0,3034.9,0.208]
[1764541011416,0.3453,3035.3,3034.9,4.55764187]
[1764541011740,0.4634,3035.7,3035.3,3.29456725]
[1764541011923,0.4634,3035.7,3035.4,0.208]
[1764541012120,0.1831,3036.0,3035.5,3.83729186]
[1764541012326,0.1831,3036.0,3035.5,0.405504]
[1764541012525,0.6465,3036.0,3035.5,0.405504]
[1764541012931,0.4851,3035.9,3035.5,0.405504]
[1764541013127,0.3238,3035.6,3035.5,0.405504]
[1764541013721,0.3238,3035.6,3035.5,3.69985418]
[1764541014454,0.3238,3035.6,3035.5,4.42544829]
[1764541015552,0.002,3035.7,3035.5,4.91384829]
[1764541015852,0.002,3035.7,3035.6,0.4884]
[1764541016252,0.002,3035.7,3035.6,3.78264166]
[1764541017455,0.3258,3035.7,3035.6,3.78264166]
[1764541017629,0.3258,3035.7,3035.6,3.29424166]
[1764541018347,0.3199,3035.7,3035.6,4.23638632]
[1764541019249,0.002,3035.7,3035.6,5.45038043]
[1764541019554,0.002,3035.7,3035.6,5.93618043]
[1764541019852,0.208,3037.3,3035.7,30.0]
[1764541020039,0.1891,3037.8,3035.7,30.0]
[1764541020040,3.48099842,3037.8,3037.0,3.43178786]
[1764541020242,0.83319984,3037.7,3037.1,0.208]
[1764541020457,0.1891,3037.8,3037.3,3.43178786]
[1764541020636,0.1891,3038.4,3037.8,9.657408]
[1764541020833,0.1391,3038.4,3037.9,0.208]
[1764541021041,3.47966226,3039.0,3038.0,1.05423477]
[1764541021249,0.4851,3038.4,3038.1,0.209]
[1764541021453,0.2558,3038.1,3037.6,5.629999]
[1764541021649,0.4851,3038.4,3037.5,0.72559411]
[1764541021988,3.77648178,3038.3,3037.6,0.209]
[1764541022137,0.1891,3037.6,3037.1,4.34679889]
[1764541022468,0.2558,3037.2,3037.1,0.405504]
[1764541022759,0.2558,3037.2,3036.9,3.29282446]
[1764541022760,0.7386,3037.2,3036.8,0.98874641]
[1764541022959,0.7386,3037.2,3036.5,3.29324948]
[1764541022960,0.4828,3037.2,3037.0,0.209]
[1764541023167,0.4851,3037.2,3037.0,0.209]
[1764541023363,0.2558,3037.1,3036.7,3.2930253]
[1764541023565,0.4851,3037.2,3036.6,3.50212881]
[1764541023765,0.4851,3037.1,3036.6,3.50212881]
[1764541024164,0.2558,3036.7,3036.5,0.72559411]
[1764541024363,0.1891,3036.7,3036.6,0.209]
[1764541024539,0.6742,3036.7,3036.6,0.209]
[1764541024739,0.93,3036.7,3036.6,0.209]
[1764541025673,0.93,3036.7,3035.7,11.252325]
[1764541025871,0.4851,3036.6,3035.8,0.209]
[1764541026050,0.39672815,3036.5,3035.8,0.209]
[1764541026540,0.4851,3036.4,3035.8,0.209]
[1764541026936,0.4443,3035.9,3035.6,0.98917349]
[1764541027136,0.1885,3035.9,3035.6,0.03294241]
[1764541027359,0.1885,3035.9,3035.5,0.209]
[1764541027360,0.257,3035.7,3035.5,0.209]
[1764541027556,0.4851,3035.8,3035.5,0.209]
[1764541027762,0.2564,3035.6,3035.5,0.209]
[1764541027970,0.2564,3035.6,3035.5,3.50335018]
[1764541030155,0.2564,3035.6,3035.5,0.209]
[1764541030361,0.2564,3035.6,3035.5,3.50335018]
[1764541030568,0.4828,3035.8,3035.5,4.00435018]
[1764541033364,0.2586,3035.6,3035.5,4.00435018]
[1764541033765,0.7392,3035.6,3035.5,0.501]
[1764541034281,0.2586,3035.6,3035.5,0.501]
[1764541034876,0.7392,3035.6,3035.5,0.501]
[1764541035067,0.2586,3035.6,3035.5,0.501]
[1764541035664,0.7392,3035.6,3035.5,0.501]
[1764541036487,0.1891,3035.9,3035.6,0.72559411]
[1764541036663,0.6742,3035.9,3035.6,0.75853652]
[1764541036865,0.1891,3035.9,3035.8,0.72559411]
[1764541037174,0.4851,3036.2,3035.6,6.58840136]
[1764541037359,0.4851,3036.2,3035.7,16.625805]
[1764541037558,0.4851,3036.2,3035.8,0.03294024]
[1764541037861,0.4851,3036.2,3035.9,0.209]
[1764541038384,0.2563,3036.0,3035.9,3.50291613]
[1764541039382,0.2563,3036.0,3035.9,0.209]
[1764541040483,0.2563,3036.0,3035.9,3.50291613]
[1764541040687,0.2563,3036.0,3035.9,0.209]
[1764541041782,3.29317667,3036.6,3035.9,0.6974]
[1764541041988,0.2563,3036.0,3035.9,0.209]
[1764541042196,0.2563,3036.0,3035.6,3.29424166]
[1764541042404,0.4851,3036.0,3035.7,0.209]
[1764541042701,0.4851,3036.0,3035.7,3.50311]
[1764541042902,0.2563,3035.8,3035.7,3.50311]
[1764541043500,0.4457,3035.8,3035.6,3.2942173]
[1764541043706,0.4457,3035.8,3035.7,0.209]
[1764541043707,0.2563,3035.8,3035.7,0.209]
[1764541044402,0.7296,3035.8,3035.7,0.209]
[1764541045200,0.7296,3035.8,3035.7,3.50313314]
[1764541045401,0.2563,3035.8,3035.7,3.50313314]
[1764541045920,0.4752,3035.8,3035.6,4.3813813]
[1764541046116,0.2716,3035.8,3035.7,0.209]
[1764541046442,0.1836,3035.9,3035.7,0.209]
[1764541046615,3.64152644,3036.5,3035.7,0.209]
[1764541046814,0.2735,3035.8,3035.7,0.209]
[1764541047333,0.2735,3035.8,3035.7,3.50313314]
[1764541049532,0.4733,3036.3,3035.7,3.96763314]
[1764541049711,0.4733,3036.3,3035.8,0.4645]
[1764541051045,0.2735,3035.9,3035.7,3.50313314]
[1764541051216,0.2735,3035.8,3035.7,3.50313314]
[1764541051414,0.4733,3036.2,3035.7,6.79726628]
[1764541051643,0.4733,3036.2,3035.7,7.26176628]
[1764541052323,0.4733,3036.2,3035.7,3.96763314]
[1764541052727,0.4733,3036.2,3035.7,7.71926628]
[1764541052950,0.4733,3036.2,3035.7,7.26176628]
[1764541054232,0.4733,3036.2,3035.7,3.96763314]
[1764541054451,0.4733,3036.2,3035.7,4.00057447]
[1764541055149,0.4733,3036.2,3035.7,0.70644133]
[1764541055354,0.84997016,3036.2,3035.7,3.53605003]
[1764541055862,0.4733,3036.1,3035.7,3.53605003]
[1764541057050,0.2735,3035.8,3035.7,0.24194133]
[1764541057269,0.4571,3035.8,3035.6,0.001]
[1764541057449,0.4733,3035.7,3035.6,0.209]
[1764541057650,0.7468,3035.7,3035.6,0.209]
[1764541058052,0.7468,3035.7,3035.6,0.001]
[1764541058587,0.7448,3035.7,3035.6,0.001]
[1764541059267,1.16703786,3035.7,3035.6,0.001]
[1764541060479,0.69573786,3035.7,3035.6,0.001]
[1764541060677,0.2735,3035.7,3035.6,0.001]
[1764541061683,0.4713,3035.9,3035.6,0.4655]
[1764541061889,6.76660362,3037.2,3035.6,0.4655]
[1764541061890,0.4733,3036.1,3035.6,0.4655]
[1764541064887,0.2735,3035.7,3035.6,0.001]
[1764541076787,6.58674746,3036.4,3035.6,0.486]
[1764541077100,0.80673016,3036.2,3035.6,0.001]
[1764541077604,0.478,3036.1,3035.6,0.001]
[1764541079014,3.29060764,3036.0,3035.6,0.001]
[1764541079180,3.76860764,3036.0,3035.6,0.001]
[1764541079507,0.478,3035.9,3035.6,0.001]
[1764541080602,0.2704,3035.7,3035.6,0.001]
[1764541081019,0.7463,3035.7,3035.6,0.001]
[1764541082725,4.04043314,3035.7,3035.6,0.209]
[1764541082918,4.79207199,3035.7,3035.6,0.209]
[1764541083094,4.79207199,3035.7,3035.6,0.001]
[1764541083300,5.12080215,3035.7,3035.6,0.001]
[1764541083707,8.75964949,3035.7,3035.6,0.001]
[1764541083927,1.05432427,3035.6,3035.5,0.001]
[1764541084241,1.05432427,3035.6,3035.3,0.001]
[1764541084242,0.32873016,3035.4,3035.3,0.001]
[1764541084418,4.0299775,3035.4,3035.3,0.001]
[1764541084738,4.5058775,3035.4,3035.3,0.001]
[1764541085301,7.80033622,3035.4,3035.3,0.001]
[1764541099973,7.47160606,3035.4,3035.3,0.001]
[1764541100282,9.17811152,3035.4,3035.3,0.001]
[1764541100744,9.50684168,3035.4,3035.3,0.001]
[1764541101679,9.71484168,3035.4,3035.3,0.001]
[1764541106595,5.60009434,3035.4,3035.3,0.001]
[1764541106794,8.70221152,3035.4,3035.3,0.001]